Cogmind - Beta 13 @@@ ROGUE MODE // 2024.04.14 @ 21:06:09 Player: Zaros426 Result: Destroyed by H-77 Assassin with Coil Gun Performance ------------- Evolutions (6) 3000 Regions Visited (11) 2200 Robots Destroyed (44) 220 Value Destroyed (1173) 1173 Prototype IDs (29) 580 Alien Tech Used (1) 200 Bonus (300) 300 TOTAL SCORE: 7673 Bonus ------- Aligned with FarCom 300 Cogmind --------- Core Integrity 0/1150 Matter 272/300 Energy 100/100 System Corruption 20% Temperature Warm (128) Movement Core (50) Location -4/Upper Caves Parts ------- > --- POWER (1) -------- (None) > --- PROPULSION (4) --- (None) > --- UTILITY (12) ----- Improved Signal Interpreter Advanced Terrain Scan Processor Microactuators Makeshift Hacking Suite System Shield > --- WEAPON (2) ------- (None) > --- INVENTORY (5) ---- Energy Well (350) Hardened Heavy Armor Plating Hardened Heavy Armor Plating Peak State ------------ > --- POWER ------------ Light Antimatter Reactor > --- PROPULSION ------- Wheel Wheel Armored Huge Wheel > --- UTILITY ---------- High-capacity Storage Unit Force Booster Improved Phase Shifter Hardened Light Armor Plating Hardened Medium Armor Plating Hardened Heavy Armor Plating Improved Light Armor Plating Improved Light Armor Plating Layered Medium Armor Plating Improved Force Field Dynamic Insulation System > --- WEAPON ----------- Hardcell Cannon Longsword +1 > --- INVENTORY -------- Reinforced Deuterium Engine Medium Treads Medium Treads Medium Treads Improved Medium Treads Wheel Advanced Cooling System Energy Well Improved Sensor Array Improved Signal Interpreter Improved Terrain Scanner Advanced Terrain Scan Processor Core Analyzer Light Armor Plating Light Armor Plating Light Armor Plating Light Armor Plating System Restoration Module Long-range Missile Launcher [Rating: 85] Favorites ----------- Power Neutrino Core Engine Ion Engine Power Core Neutrino Core Reactor Light Antimatter Reactor Propulsion Medium Treads Treads Medium Treads Wheel Wheel Hover Unit Improved Antigrav System Utility Light Armor Plating Device Multitargeting Array Storage High-capacity Storage Unit Processor Improved Signal Interpreter Hackware System Shield Protection Light Armor Plating Weapon Longsword +1 Energy Gun EM Pulse Gun Ballistic Gun Flak Gun Ballistic Cannon Hardcell Cannon Launcher Long-range Missile Launcher Slashing Weapon Longsword +1 Special Melee Weapon Dirty Datajack Build | -11 -10 -10 -10 -9 -8 -7 -6 -5 -4 -4 -4 ------- Run | Yrd Mat Min Exi Min Mat Fac Fac Fac Fac Upp Upp Slots Evolved 12 | . . . . . 4 2 2 2 2 . . Power . | . . . . . . . . . . . . Propulsion 2 | . . . . . . . 2 . . . . Utility 10 | . . . . . 4 2 . 2 2 . . Weapon . | . . . . . . . . . . . . Parts Attached 95 | 8 1 . 2 3 8 2 6 5 40 17 3 Power 7 | 1 . . . . 1 . 1 1 2 1 . Engine 3 | 1 . . . . . . 1 . 1 . . Core 3 | . . . . . 1 . . . 1 1 . Reactor 1 | . . . . . . . . 1 . . . Propulsion 22 | 4 . . . 1 . . 2 . 9 5 1 Treads 8 | 2 . . . . . . . . 5 1 . Leg . | . . . . . . . . . . . . Wheel 13 | 2 . . . 1 . . 2 . 4 4 . Hover 1 | . . . . . . . . . . . 1 Flight . | . . . . . . . . . . . . Utility 53 | 2 1 . 1 1 7 2 3 2 25 8 1 Device 21 | 1 . . . . 1 . . 1 12 5 1 Storage 6 | 1 . . . 1 . 1 . . 2 1 . Processor 3 | . . . . . . . . . 3 . . Hackware 2 | . . . . . . . . . 1 1 . Protection 21 | . 1 . 1 . 6 1 3 1 7 1 . Artifact . | . . . . . . . . . . . . Weapon 13 | 1 . . 1 1 . . . 2 4 3 1 Energy Gun 3 | 1 . . . . . . . 1 . . 1 Energy Cannon . | . . . . . . . . . . . . Ballistic Gun 1 | . . . . 1 . . . . . . . Ballistic Cannon 3 | . . . . . . . . 1 2 . . Launcher 1 | . . . . . . . . . 1 . . Special Weapon . | . . . . . . . . . . . . Impact Weapon . | . . . . . . . . . . . . Slashing Weapon 4 | . . . 1 . . . . . 1 2 . Piercing Weapon . | . . . . . . . . . . . . Special Melee Weapon 1 | . . . . . . . . . . 1 . Unidentified Prototypes 3 | . . . . . . . . . 2 1 . Parts Lost 46 | . . . . . . . . . 26 18 2 Power 4 | . . . . . . . . . 2 2 . Propulsion 13 | . . . . . . . . . 6 6 1 Utility 23 | . . . . . . . . . 17 6 . Weapon 6 | . . . . . . . . . 1 4 1 Highest Loss Streak 12 | . . . . . . . . . 12 7 2 To Critical Strikes . | . . . . . . . . . . . . Average Slot Usage (%) 84 | . 85 85 94 86 89 84 86 88 84 83 30 Engine 3 | . 14 14 14 14 2 . . 4 2 . . Core 3 | . . . . . 6 7 5 . . 4 . Treads 5 | . . . . . . . . . 4 14 . Wheel 9 | . 28 28 28 15 9 7 20 17 12 . . Device 11 | . 3 . . . 9 7 6 11 19 17 6 Storage 9 | . 14 14 5 12 9 7 6 5 6 13 . Processor 4 | . . . . . . . . . 6 10 10 Hackware 2 | . . . . . . . . . . 5 10 Protection 19 | . 10 14 22 15 35 38 33 35 17 5 . Energy Gun 1 | . 14 14 14 2 . . . 1 . . 1 Ballistic Gun 3 | . . . . 11 9 7 6 2 . . . Slashing Weapon 6 | . . . 8 14 9 7 6 5 5 4 . Special Melee Weapon 1 | . . . . . . . . . . 3 . Naked Turns . | . . . . . . . . . . . . Heaviest Build 133 | 13 15 15 16 35 53 93 111 123 133 86 9 Greatest Support 123 | 20 20 20 20 28 28 28 48 48 123 123 12 Greatest Overweight (x) 7 | 1 . . . 1 1 3 2 2 7 7 . Average Overweight (x) . | . . . . . 1 2 1 2 1 . . Largest Inventory Capacity 20 | 8 8 8 8 15 15 20 20 20 20 20 5 Average Capacity 17 | 7 8 8 6 13 15 16 20 20 20 19 5 Most Carried 20 | 4 7 7 8 13 15 15 20 20 20 12 5 Average Carried 11 | 2 5 7 5 11 10 13 17 18 12 8 5 Final Capacity 20 | 8 8 8 5 15 15 20 20 20 20 5 5 Final Carried 20 | 2 7 7 5 13 15 15 20 20 6 5 5 Class Distribution -------------------- 42% | Mutant 41% | Scavenger-Mutant 11% | Scavenger-Assassin 4% | Hacker-Mutant Dominant Class ---------------- Mutant | -10/Materials Mutant | -10/Mines Mutant | -10/Exiles Mutant | -9/Mines Mutant | -8/Materials Mutant | -7/Factory Mutant | -6/Factory Scavenger-Mutant | -5/Factory Scavenger-Mutant | -4/Factory Scavenger-Mutant | -4/Upper Caves Hacker-Mutant | -4/Upper Caves Resources | -11 -10 -10 -10 -9 -8 -7 -6 -5 -4 -4 -4 ----------- Run | Yrd Mat Min Exi Min Mat Fac Fac Fac Fac Upp Upp Matter Collected 1312 | 223 30 . . 97 80 20 50 67 424 302 19 Remotely . | . . . . . . . . . . . . Salvage Created 2039 | 69 30 . . 91 . 91 135 175 1292 156 . Parts 94 | 6 4 . . 7 . 1 9 3 56 8 . Haulers Intercepted 3 | . . . . . . . . 2 1 . . Recyclers Shooed 2 | . . . . . . 1 . . 1 . . Parts Field Recycled . | . . . . . . . . . . . . Retrieved Matter . | . . . . . . . . . . . . Parts Self-Destructed 8 | . . . . . . . . . . 8 . Prevented . | . . . . . . . . . . . . Kills | -11 -10 -10 -10 -9 -8 -7 -6 -5 -4 -4 -4 ------- Run | Yrd Mat Min Exi Min Mat Fac Fac Fac Fac Upp Upp Combat Hostiles Destroyed 24 | . . . . 3 . . 4 . 12 5 . Melee 23 | . . . . 3 . . 4 . 11 5 . Cannons 1 | . . . . . . . . . 1 . . Classes Destroyed 11 | 2 1 . . 1 . 1 . 1 5 . . Worker 10 | 1 . . . 2 . . 2 . 5 . . Tunneler 2 | 2 . . . . . . . . . . . Hauler 3 | . . . . . . . . 2 1 . . Recycler 4 | . . . . . . 1 . . 3 . . Watcher 1 | . 1 . . . . . . . . . . Swarmer 13 | . . . . 3 . . 4 . 2 4 . Grunt 3 | . . . . . . . . . 3 . . Brawler 1 | . . . . . . . . . 1 . . Duelist 1 | . . . . . . . . . 1 . . Sentry 1 | . . . . . . . . . 1 . . Programmer 5 | . . . . . . . . . 4 1 . Best Kill Streak 7 | 3 1 . . 3 . 1 4 1 7 4 . Combat Bots Only 6 | . . . . 3 . . 4 . 6 4 . Max Kills in Single Turn 1 | 1 1 . . 1 . 1 1 1 1 1 . Gunslinging . | . . . . . . . . . . . . Exploded . | . . . . . . . . . . . . Melee 1 | . . . . 1 . . 1 . 1 1 . Uniques/NPCs Destroyed . | . . . . . . . . . . . . Combat | -11 -10 -10 -10 -9 -8 -7 -6 -5 -4 -4 -4 -------- Run | Yrd Mat Min Exi Min Mat Fac Fac Fac Fac Upp Upp Hostile Shots Fired 477 | . . . . 8 2 2 25 3 242 136 59 Missed 144 | . . . . 3 1 1 6 1 51 49 32 Damage Taken 6388 | . . . . 35 15 16 340 56 3822 1659 445 Core 1174 | . . . . . . . . . 444 435 295 Absorbed by Shields 195 | . . . . . . . . 21 174 . . Core Remaining (%) 100 | 100 . . . 100 100 100 100 100 . . . Volleys Fired 39 | 14 10 . . 2 . . . 2 10 1 . Largest 1 | 1 1 . . 1 . . . 1 1 1 . Hottest 65 | 40 40 . . 28 . . . 65 65 65 . Shots Fired 40 | 14 10 . . 2 . . . 2 10 2 . Gun 27 | 14 10 . . 2 . . . 1 . . . Cannon 13 | . . . . . . . . 1 10 2 . Launcher . | . . . . . . . . . . . . Special . | . . . . . . . . . . . . Kinetic 15 | . . . . 2 . . . 1 10 2 . Thermal . | . . . . . . . . . . . . Explosive . | . . . . . . . . . . . . Electromagnetic 25 | 14 10 . . . . . . 1 . . . Robot Hit Streak 6 | 4 6 . . 2 . . . 2 2 3 . Robot Miss Streak 5 | 4 3 . . 5 . . . 1 5 . . Penetration Max . | . . . . . . . . . . . . Secondary Targets . | . . . . . . . . . . . . Shots Hit Robots 127 | 8 5 . . 9 . 2 11 7 72 13 . Core Hits 41 | 3 1 . . 3 . . 5 2 22 5 . Critical Kills . | . . . . . . . . . . . . Critical Parts Destroyed . | . . . . . . . . . . . . Critical Strikes 7 | . 1 . . . . . . 2 4 . . Blast 1 | . . . . . . . . . 1 . . Corrupt 1 | . 1 . . . . . . . . . . Sever 5 | . . . . . . . . 2 3 . . Melee Attacks 158 | . . . . 11 2 2 13 7 91 32 . Impact . | . . . . . . . . . . . . Slashing 157 | . . . . 11 2 2 13 7 91 31 . Piercing 1 | . . . . . . . . . . 1 . Sneak Attacks 17 | . . . . 2 . 1 3 2 9 . . Combat Hostiles . | . . . . . . . . . . . . Follow-up Attacks . | . . . . . . . . . . . . Damage Inflicted 6404 | 156 79 . . 483 . 158 726 441 3768 593 . Guns 250 | 125 79 . . 21 . . . 25 . . . Cannons 253 | . . . . . . . . . 216 37 . Explosions 31 | 31 . . . . . . . . . . . Melee 5870 | . . . . 462 . 158 726 416 3552 556 . Ramming . | . . . . . . . . . . . . Kinetic 274 | . . . . 21 . . . . 216 37 . Thermal 31 | 31 . . . . . . . . . . . Explosive . | . . . . . . . . . . . . Electromagnetic 229 | 125 79 . . . . . . 25 . . . Impact . | . . . . . . . . . . . . Slashing 5870 | . . . . 462 . 158 726 416 3552 556 . Piercing . | . . . . . . . . . . . . Highest Corruption 20 | . . . . . . . 1 . 18 20 20 Average Corruption 18 | . . . . . . . 1 . 9 19 20 Corruption Purged 4 | . . . . . . . . . 4 . . Corruption Blocked . | . . . . . . . . . . . . Effects 127 | . . . . . . . . . 13 108 6 Message Errors 43 | . . . . . . . . . 6 34 3 Matter Fused 34 | . . . . . . . . . 3 30 1 Heat Flow Errors 13 | . . . . . . . . . 1 11 1 Energy Discharges 8 | . . . . . . . . . 1 7 . Parts Rejected 2 | . . . . . . . . . 1 1 . Parts Fused 2 | . . . . . . . . . . 2 . Data Loss (minor) 11 | . . . . . . . . . . 10 1 Data Loss (major) 7 | . . . . . . . . . . 7 . Misfires 1 | . . . . . . . . . . 1 . Alerts 3 | . . . . . . . . . . 3 . Misdirections 3 | . . . . . . . . . 1 2 . Overload Shots . | . . . . . . . . . . . . Overflow Damage 816 | . . . . 224 . 22 55 . 473 42 . Projectiles . | . . . . . . . . . . . . Explosions . | . . . . . . . . . . . . Melee 816 | . . . . 224 . 22 55 . 473 42 . Knockbacks 1 | . . . . . . . . . 1 . . Impact . | . . . . . . . . . . . . Kinetic 1 | . . . . . . . . . 1 . . Secondary . | . . . . . . . . . . . . Self-Inflicted Damage . | . . . . . . . . . . . . Shots . | . . . . . . . . . . . . Rammed . | . . . . . . . . . . . . Targets Rammed . | . . . . . . . . . . . . Kicked . | . . . . . . . . . . . . Crushed . | . . . . . . . . . . . . Highest Temperature 339 | 20 48 . . . . . . 74 315 339 171 Average Temperature 97 | 20 21 . . . . . . 38 147 111 149 Received Heat Transfer 1465 | . . . . . 9 . . 6 619 795 36 Effects 5 | . . . . . . . . . 4 1 . Energy Bleed 5 | . . . . . . . . . 4 1 . Siege Activations . | . . . . . . . . . . . . Robots Corrupted . | . . . . . . . . . . . . Combat Hostiles . | . . . . . . . . . . . . Parts Fried . | . . . . . . . . . . . . Impact Corruptions . | . . . . . . . . . . . . Robots Melted . | . . . . . . . . . . . . Combat Hostiles . | . . . . . . . . . . . . Parts Melted . | . . . . . . . . . . . . Heat Transferred . | . . . . . . . . . . . . Parts Sabotaged . | . . . . . . . . . . . . Parts Stolen . | . . . . . . . . . . . . Parts Stripped . | . . . . . . . . . . . . Power Chain Reactions 1 | 1 . . . . . . . . . . . Alert | -11 -10 -10 -10 -9 -8 -7 -6 -5 -4 -4 -4 ------- Run | Yrd Mat Min Exi Min Mat Fac Fac Fac Fac Upp Upp Peak Influence 168 | 15 16 6 . 103 93 16 100 56 168 . . Initial 49 | . 9 6 . . 3 11 . 49 4 . . Average 25 | 2 11 6 . 10 35 12 8 28 56 . . Maximum Alert Level . | . . . . . . . . . . . . Low Security (%) 100 | 100 100 100 . 100 100 100 100 100 100 . . Level 1 . | . . . . . . . . . . . . Level 2 . | . . . . . . . . . . . . Level 3 . | . . . . . . . . . . . . Level 4 . | . . . . . . . . . . . . Level 5 . | . . . . . . . . . . . . High Security . | . . . . . . . . . . . . Max Security . | . . . . . . . . . . . . Squads Dispatched 11 | . . . . 1 2 3 1 1 3 . . Investigation 1 | . . . . 1 . . . . . . . Extermination 4 | . . . . . . 1 . . 3 . . Reinforcement 6 | . . . . . 2 2 1 1 . . . Assault . | . . . . . . . . . . . . Garrison . | . . . . . . . . . . . . Intercept . | . . . . . . . . . . . . Searches Triggered . | . . . . . . . . . . . . Construction Impeded . | . . . . . . . . . . . . Haulers Reinforced . | . . . . . . . . . . . . Active Scanning Responses . | . . . . . . . . . . . . Cargo Convoy Interrupts . | . . . . . . . . . . . . Stealth | -11 -10 -10 -10 -9 -8 -7 -6 -5 -4 -4 -4 --------- Run | Yrd Mat Min Exi Min Mat Fac Fac Fac Fac Upp Upp Distress Signals 3 | . . . . . 1 . 1 . 1 . . Communications Jammed . | . . . . . . . . . . . . Distress Signals . | . . . . . . . . . . . . Times Spotted 80 | . 1 . . 4 5 6 11 9 25 16 3 Peak Tracking Total 9 | . 1 . . 3 3 3 5 3 9 7 3 Tactical Retreats 12 | . . . . 1 3 . . . 3 4 1 Traps | -11 -10 -10 -10 -9 -8 -7 -6 -5 -4 -4 -4 ------- Run | Yrd Mat Min Exi Min Mat Fac Fac Fac Fac Upp Upp Traps Triggered 5 | . . . . . 1 . 1 . 1 2 . Indirectly . | . . . . . . . . . . . . Trap Hack Attempts . | . . . . . . . . . . . . Triggered . | . . . . . . . . . . . . Disarmed . | . . . . . . . . . . . . Reprogrammed . | . . . . . . . . . . . . Reused . | . . . . . . . . . . . . Traps Extracted . | . . . . . . . . . . . . Installed . | . . . . . . . . . . . . Triggered . | . . . . . . . . . . . . Machines | -11 -10 -10 -10 -9 -8 -7 -6 -5 -4 -4 -4 ---------- Run | Yrd Mat Min Exi Min Mat Fac Fac Fac Fac Upp Upp Machines Disabled 2 | . . . . . . . . . 1 1 . Max in Single Turn 1 | . . . . . . . . . 1 1 . Machines Repaired . | . . . . . . . . . . . . Machines Dismantled . | . . . . . . . . . . . . Machines Sabotaged . | . . . . . . . . . . . . Overloaded Fab Kills . | . . . . . . . . . . . . Hacking | -11 -10 -10 -10 -9 -8 -7 -6 -5 -4 -4 -4 --------- Run | Yrd Mat Min Exi Min Mat Fac Fac Fac Fac Upp Upp Machines Accessed 12 | . 1 . 1 2 4 . . . 1 3 . Terminals 6 | . 1 . . 1 3 . . . 1 . . Fabricators . | . . . . . . . . . . . . Repair Stations 1 | . . . . . 1 . . . . . . Recycling Units . | . . . . . . . . . . . . Scanalyzers . | . . . . . . . . . . . . Garrison Access . | . . . . . . . . . . . . Total Hacks 19 | . 4 . 1 3 6 . . . 2 3 . Successful 13 | . 2 . 1 1 5 . . . 1 3 . Failed 6 | . 2 . . 2 1 . . . 1 . . Catastrophic 2 | . . . . 1 1 . . . . . . Database Lockouts . | . . . . . . . . . . . . Manual 1 | . . . 1 . . . . . . . . Terminals 13 | . 4 . . 2 5 . . . 2 . . Fabricators . | . . . . . . . . . . . . Repair Stations 1 | . . . . . 1 . . . . . . Recycling Units . | . . . . . . . . . . . . Scanalyzers . | . . . . . . . . . . . . Garrison Access . | . . . . . . . . . . . . Terminal Hacks 12 | . 2 . 1 1 4 . . . 1 3 . Record 3 | . 1 . . . . . . . 1 1 . Prototype ID Bank 2 | . . . . . 2 . . . . . . Open Door 3 | . . . . 1 . . . . . 2 . Alert Level 1 | . 1 . . . . . . . . . . Locate Traps 1 | . . . . . 1 . . . . . . Hauler Manifests 1 | . . . . . 1 . . . . . . Derelict Proto ID Bank 1 | . . . 1 . . . . . . . . Fabricator Hacks . | . . . . . . . . . . . . Repair Station Hacks 1 | . . . . . 1 . . . . . . Scan Component 1 | . . . . . 1 . . . . . . Recycling Unit Hacks . | . . . . . . . . . . . . Scanalyzer . | . . . . . . . . . . . . Garrison Access Hacks . | . . . . . . . . . . . . Unauthorized Hacks . | . . . . . . . . . . . . Terminals . | . . . . . . . . . . . . Fabricators . | . . . . . . . . . . . . Repair Stations . | . . . . . . . . . . . . Recycling Units . | . . . . . . . . . . . . Scanalyzers . | . . . . . . . . . . . . Garrison Access . | . . . . . . . . . . . . Data Cores Recovered 3 | . . . . . 1 . 1 1 . . . Used . | . . . . . . . . . . . . Hacking Detections 3 | . . . . 1 1 . . . 1 . . Full Trace Events . | . . . . . . . . . . . . Feedback Events . | . . . . . . . . . . . . Feedback Blocked . | . . . . . . . . . . . . Robot Schematics Acquired . | . . . . . . . . . . . . Robots Built . | . . . . . . . . . . . . Authchips . | . . . . . . . . . . . . Time . | . . . . . . . . . . . . Total Robot Build Rating . | . . . . . . . . . . . . Part Schematics Acquired . | . . . . . . . . . . . . Parts Built . | . . . . . . . . . . . . Authchips . | . . . . . . . . . . . . Time . | . . . . . . . . . . . . Total Part Build Rating . | . . . . . . . . . . . . Parts Repaired . | . . . . . . . . . . . . Time . | . . . . . . . . . . . . Parts Recycled . | . . . . . . . . . . . . Recycled Matter . | . . . . . . . . . . . . Retrieved Matter . | . . . . . . . . . . . . Retrieved Components . | . . . . . . . . . . . . Parts Scanalyzed . | . . . . . . . . . . . . Part Schematics Acquired . | . . . . . . . . . . . . Parts Damaged . | . . . . . . . . . . . . Bothacking | -11 -10 -10 -10 -9 -8 -7 -6 -5 -4 -4 -4 ------------ Run | Yrd Mat Min Exi Min Mat Fac Fac Fac Fac Upp Upp Used RIF Installer . | . . . . . . . . . . . . Robots Hacked . | . . . . . . . . . . . . Non-combat . | . . . . . . . . . . . . Combat . | . . . . . . . . . . . . Robot Hacks Applied . | . . . . . . . . . . . . Relay Couplers Released . | . . . . . . . . . . . . Fabnet Peak Effective % . | . . . . . . . . . . . . Robots Rewired . | . . . . . . . . . . . . Allies Hacked . | . . . . . . . . . . . . Hacks Repelled . | . . . . . . . . . . . . Allies | -11 -10 -10 -10 -9 -8 -7 -6 -5 -4 -4 -4 -------- Run | Yrd Mat Min Exi Min Mat Fac Fac Fac Fac Upp Upp Total Allies . | . . . . . . . . . . . . Largest Group . | . . . . . . . . . . . . Highest-Rated Group . | . . . . . . . . . . . . Highest-Rated Ally . | . . . . . . . . . . . . Total Orders . | . . . . . . . . . . . . Ally Attacks . | . . . . . . . . . . . . Total Damage . | . . . . . . . . . . . . Kills . | . . . . . . . . . . . . Allies Corrupted . | . . . . . . . . . . . . Allies Melted . | . . . . . . . . . . . . Intel | -11 -10 -10 -10 -9 -8 -7 -6 -5 -4 -4 -4 ------- Run | Yrd Mat Min Exi Min Mat Fac Fac Fac Fac Upp Upp Robot Analysis Total . | . . . . . . . . . . . . Derelict Logs Recovered 5 | . . . . 2 . . . . . 2 1 Drone Launches . | . . . . . . . . . . . . Drone Recoveries . | . . . . . . . . . . . . Exploration | -11 -10 -10 -10 -9 -8 -7 -6 -5 -4 -4 -4 ------------- Run | Yrd Mat Min Exi Min Mat Fac Fac Fac Fac Upp Upp Turns Passed 7265 | 103 83 42 328 688 689 430 732 777 825 2399 169 Spaces Moved 4736 | 70 58 53 400 594 447 209 429 426 344 1417 289 Core 419 | 15 . . . . . . . . . 184 220 Treads 1283 | 3 . . . . . . . . 77 1203 . Legs . | . . . . . . . . . . . . Wheels 2965 | 52 58 53 400 594 447 209 429 426 267 30 . Hover 69 | . . . . . . . . . . . 69 Flight . | . . . . . . . . . . . . Fastest Speed 50 | 50 80 80 80 80 115 130 101 116 110 50 50 Average Speed 117 | 80 80 80 80 108 115 133 113 116 128 145 52 Slowest Speed 240 | 160 80 80 80 115 115 145 116 116 240 200 60 Overloaded Moves . | . . . . . . . . . . . . Propulsion Burnouts . | . . . . . . . . . . . . Robots Hopped . | . . . . . . . . . . . . Cave-ins Triggered 1 | . . . . . . . . . 1 . . Exploration Rate (%) 36 | 4 12 16 86 95 37 7 20 12 13 95 41 Regions Visited 11 Branch Regions 5 Pre-discovered Areas 3 | . . . . 1 . . . . . 1 1 Known Exits Taken 3 | . . . . . 1 . . . 1 1 . Unknown Exits Taken 8 | 1 1 1 1 1 . 1 1 1 . . . Scrap Searched 6 | . . . . 1 . . . . . 3 2 Spaces Dug 36 | . . . . 3 2 . . . 17 14 . Terrain Destroyed 49 | 6 . . . 3 2 . . 1 22 15 . Melee 36 | . . . . 3 2 . . . 17 14 . Projectile 7 | . . . . . . . . 1 5 1 . AOE 6 | 6 . . . . . . . . . . . Terrain Rammed . | . . . . . . . . . . . . Walls Destroyed . | . . . . . . . . . . . . Machines Disabled . | . . . . . . . . . . . . Actions | -11 -10 -10 -10 -9 -8 -7 -6 -5 -4 -4 -4 --------- Run | Yrd Mat Min Exi Min Mat Fac Fac Fac Fac Upp Upp Total 6255 | 99 83 52 408 624 620 357 662 700 624 1721 305 Wait 1138 | 3 10 . . 5 153 144 202 255 125 229 12 Move 4724 | 69 57 52 399 593 446 208 428 425 342 1416 289 Hop . | . . . . . . . . . . . . Pick Up 60 | 5 5 . 3 7 7 1 8 3 8 13 . Fast Attach 25 | 3 . . . 1 2 . . 2 10 4 3 Attach 53 | 3 . . 2 1 4 1 2 2 26 12 . Detach 10 | . . . . 2 . . . . 4 4 . Swap 18 | 2 1 . . 1 2 1 4 1 4 2 . Drop 27 | . . . 2 1 4 . 5 3 3 8 1 Fire 39 | 14 10 . . 2 . . . 2 10 1 . Melee 158 | . . . . 11 2 2 13 7 91 32 . Ram . | . . . . . . . . . . . . Kick . | . . . . . . . . . . . . Crush . | . . . . . . . . . . . . Escape Stasis 1 | . . . . . . . . . 1 . . Rewire 2 | . . . 2 . . . . . . . . Trap . | . . . . . . . . . . . . Miscellaneous . | . . . . . . . . . . . . Route ------- -11/Scrapyard -10/Materials -10/Mines -10/Exiles -9/Mines -8/Materials (discovered 2 exits: *Fac x2) -7/Factory -6/Factory (discovered 2 exits: [*Fac] / [*Low]) -5/Factory (discovered 2 exits: *Fac / [*Upp]) -4/Factory (discovered 2 exits: *Res / *Upp) -4/Upper Caves -4/Upper Caves (discovered 1 exit: *Res) History --------- Turn | Location | Event 7 | -11/Scrapyard | Discovered new exit (range 15) 104 | -11/Scrapyard | Entered Materials 141 | -10/Materials | Discovered new exit (range 15) 187 | -10/Materials | Entered Mines 226 | -10/Mines | Deemed a non-threat by the Exiles lab entrance 226 | -10/Mines | Discovered new exit (range 5) 229 | -10/Mines | Entered Exiles 248 | -10/Exiles | Met 8R-AWN 262 | -10/Exiles | Met EX-HEX 302 | -10/Exiles | Met EX-BIN 312 | -10/Exiles | Aligned with FarCom system 312 | -10/Exiles | Given EX-Vault access code 313 | -10/Exiles | Build established: Mutant 331 | -10/Exiles | Opened EX-Vault 339 | -10/Exiles | Found Longsword +1 362 | -10/Exiles | Warned to stay clear of 0b10 Research branches 388 | -10/Exiles | Met EX-DEC 416 | -10/Exiles | Visited The Gauntlet 550 | -10/Exiles | Discovered new exit (range 10) 557 | -10/Exiles | Left Exiles lab with Longsword +1 557 | -10/Exiles | Entered Mines 642 | -9/Mines | Met a Derelict shopkeep closing up shop 734 | -9/Mines | Received a Rocket Launcher from a helpful Derelict 921 | -9/Mines | Learned 4 Materials zone layouts 1044 | -9/Mines | Learned location of Zion (-7) 1231 | -9/Mines | Discovered new exit (range 11) 1245 | -9/Mines | Entered Materials 1245 | -8/Materials | Evolved 4 slots: Utility x4 1246 | -8/Materials | Identified exit to Factory 1823 | -8/Materials | Met 7R-MNS 1926 | -8/Materials | Discovered exit to Factory (range 4) 1934 | -8/Materials | Entered Factory 1934 | -7/Factory | Evolved 2 slots: Utility x2 1935 | -7/Factory | Caught up to 7R-MNS 2179 | -7/Factory | Discovered new exit (range 16) 2364 | -7/Factory | Entered another Factory area 2364 | -6/Factory | Evolved 2 slots: Propulsion x2 2365 | -6/Factory | Caught up to 7R-MNS 2566 | -6/Factory | Discovered new exit (range 12) 3016 | -6/Factory | Spotted B-75 Beast 3061 | -6/Factory | Discovered new exit (range 16) 3096 | -6/Factory | Entered another Factory area 3096 | -5/Factory | Evolved 2 slots: Utility x2 3097 | -5/Factory | Caught up to 7R-MNS 3378 | -5/Factory | Build established: Scavenger-Mutant 3799 | -5/Factory | Discovered new exit (range 7) 3854 | -5/Factory | Discovered new exit (range 16) 3873 | -5/Factory | Entered another Factory area 3873 | -4/Factory | Evolved 2 slots: Utility x2 3874 | -4/Factory | Caught up to 7R-MNS 4105 | -4/Factory | 7R-MNS lamented failing the tripod run 4163 | -4/Factory | Found Prototype Device 4173 | -4/Factory | Identified Multitargeting Array 4199 | -4/Factory | Lost 10 parts (1p1n8u) 4455 | -4/Factory | Discovered new exit (range 15) 4506 | -4/Factory | Crushed by falling debris 4507 | -4/Factory | System corruption reached 10% 4554 | -4/Factory | Identified exit to Research 4593 | -4/Factory | Lost 12 parts (1p4n6u1w) 4646 | -4/Factory | Discovered new exit (range 15) 4667 | -4/Factory | Identified exit to Upper Caves 4698 | -4/Factory | Entered Upper Caves 4842 | -4/Upper Caves | Learned 4 Research zone layouts 5220 | -4/Upper Caves | Learned location of Testing (-2) 5276 | -4/Upper Caves | Spotted B-86 Titan 5424 | -4/Upper Caves | Found Alien Artifact 5425 | -4/Upper Caves | Identified Dimensional Node Initializer 5425 | -4/Upper Caves | Initialized slip node 6525 | -4/Upper Caves | Build established: Scavenger-Assassin 6946 | -4/Upper Caves | Core integrity fell below 50% 6986 | -4/Upper Caves | Lost 7 parts (1p4n2w) 7029 | -4/Upper Caves | Discovered new exit (range 10) 7044 | -4/Upper Caves | Identified exit to Upper Caves 7073 | -4/Upper Caves | Attracted the attention of an 0b10 outpost 7097 | -4/Upper Caves | Entered another Upper Caves area 7105 | -4/Upper Caves | Learned location of Armory (-3) 7183 | -4/Upper Caves | Discovered exit to Research (range 16) 7208 | -4/Upper Caves | Attracted the attention of an 0b10 checkpoint 7232 | -4/Upper Caves | Build established: Hacker-Mutant 7234 | -4/Upper Caves | Core integrity fell below 20% 7266 | -4/Upper Caves | Destroyed by H-77 Assassin with Coil Gun Last Messages --------------- 07248_ Slug penetrates Wall. 07254_ Penetrated by Slug. 07254_ Slug penetrates Wall. 07254_ Slug penetrates Y-64 Sentinel. 07254_ Slug penetrates Wall. 07254_ Variable Charge Gun destroyed. 07256_ Penetrated by Slug. 07256_ Slug penetrates Wall. 07259_ Penetrated by Slug. 07259_ Slug penetrates Wall. 07259_ Penetrated by Slug. 07261_ Slug penetrates Wall. 07262_ Imp. Antigrav System destroyed. 07262_ Penetrated by Slug. 07262_ Discarded Multitargeting Array. 07262_ Slug penetrates Wall. 07264_ System corrupted: Heat flow error (+214). 07264_ Acquired 19 matter. 07264_ Slug penetrates Wall. 07264_ Penetrated by Slug. Map ----- +----------------------------------------------------+ | ?????????????????????????????????????????????????? | | ?????????????????????????????????????????????????? | | ?????????????????????????????????????????????????? | | ?????????????????????????????????????????????????? | | ?????????????????????????????????????????????????? | | ?????????????????????????????????????????????????? | | ?????????????????????????????????????????????????? | | ?????????????????????????########????????????????? | | ????????????????????????## ##????######?????? | | ??????????????#####?????# ???## ##????? | | ????????????### ##????# #???# ###??? | | ???########## ##???# ##??# ##?? | | ???# #??## ???# #?? | | #### ###### #?## ????# #?? | | #????# ### #???## #??? | | #????# ##?# ##### #??? | | #######????## ## #?# ## ##??? | | ????????????###### ### ### #???? | | ?????????????????# #? ##???? | | ???????????####### % #####????? | | #####??????# " ##??????? | | ##?????## ### # #??????? | | #??????# ### # h ## #??????? | | ### #???# ; #### ##?###?? | | #??# #??# # #### ### #?? | | #??? ??# #### @ ###### ## #?? | | #????? ???# #???# #?? | | ##??? ????# #??# #? | | ##???? ????# ### #? | | #????? ?????## ### ### #? | | ????? #??????## #?#######?## ####? | | #????? ????????#### #??????????####???? | | ????? ?????????????# ##????????????????? | | ???????????########## ##???????????????? | | ???????????# ####????????????? | | #???????????# ##???????????? | | ##???????????## ##??????????? | | ##?????????????## ## #??????????? | | ????????????## #?# #??????????? | | # #???????????###??# ### #??????????? | | ?????????????????????## ##?# ##??????????? | | ?????????????????????# ##??# < ##??????????? | | ?????????????????????# #???## #??????????? | | ?????????????????????# ##????## ## #??????????? | | ?????????????????????###??????#########??????????? | | ?????????????????????????????????????????????????? | | ?????????????????????????????????????????????????? | | ?????????????????????????????????????????????????? | | ?????????????????????????????????????????????????? | | ?????????????????????????????????????????????????? | +----------------------------------------------------+ Best States ------------- Heat Dissipation 81 Energy Generation 21 Energy Capacity 865 Matter Stores 300 Matter Capacity 300 Sight Range 16 Robot Scan Range 15 Terrain Scan Range 16 Terrain Scan Density 210 Cloak Strength 2 Additional Mass Support 9 Base Temperature (-) 200 EM Shielding 2 Armor Coverage 1650 Phase Shifting 10 Evasion (%) 53 Core Analysis 6 Recoil Reduction 4 Force Boost 20 Offensive Hacking 11 Defensive Hacking 10 Item Schematics ----------------- None Robot Schematics ------------------ None Fabricated ------------ Nothing Alien Tech Used ----------------- Dimensional Node Initializer Achievements -------------- Alien Tech Challenges ------------ None Game ------ Seed ShieldGuidedSheargun Manual? 0 Play Time 01:40:57 Cumulative 40.5 hours Start 2024.04.14 @ 18:34:53 End 2024.04.14 @ 21:06:09 Sessions 3 Manual Loads 0 Difficulty Rogue Special Mode None Game No. 44 Rogue 44 Adventurer 0 Explorer 0 Win Type - Total 0 Types 0/0/0/0/0/0/0/0/0 Lore% 25 Gallery% 37 Achievement% 28 Wizard Run 0 Options --------- Layout 0 ASCII 0 Keyboard 0 Movement Mouse Keybinds 0 Fullscreen 1 Font 24/Smallcaps Map View 183x50 Zoom Use 0% Tactical HUD 1 Map Filters NONE Filters NONE Steam 0 RUN: fa14c612-9f13-4b9b-9e2b-f9d0b6aa4771